Cogmind - Beta 12 *** ADVENTURER MODE // 2023.12.09 @ 13:54:53 // Winter2022/Polymind Player: PersmaticCoreSerial_K4E2 Result: Destroyed by C-17 Slicer with Blade Saw Performance ------------- Evolutions (3) 1500 Regions Visited (7) 1400 Robots Destroyed (70) 350 Value Destroyed (2703) 2703 Prototype IDs (0) 0 Alien Tech Used (0) 0 Bonus (5286) 5286 TOTAL SCORE: 10849 Bonus ------- Polymind Skill 3600 Pacifist 200 High Alert Combat Kills 396 Follower Combat Kills 248 Entered Garrisons 400 Used RIF Installer 500 Friendly Fire -58 Cogmind --------- Core Integrity 0/700 Matter 0/0 Energy 49/50 System Corruption 5% Temperature Cool (0) Movement Core (50) Location -7/Garrison Parts ------- > --- POWER (1) -------- (None) > --- PROPULSION (2) --- (None) > --- UTILITY (3) ------ Improved Heat Sink Improved Heat Sink Target Analyzer > --- WEAPON (3) ------- (None) > --- INVENTORY (5) ---- Tiamat Bomb Trap Tiamat Bomb Trap Peak State ------------ > --- POWER ------------ Micro Fission Core > --- PROPULSION ------- Antigrav System Antigrav System > --- UTILITY ---------- Improved Heat Sink Improved Heat Sink Improved Target Analyzer > --- WEAPON ----------- High-powered Shock Rifle Tesla Rifle Improved Remote Datajack > --- INVENTORY -------- Authchip [R/Combat] Authchip [R/Combat] Authchip [R/Combat] Authchip [R/Combat] Authchip [R/Combat] [Rating: 48] Favorites ----------- Power Improved Ion Engine Engine Improved Ion Engine Power Core Micro Nuclear Core Propulsion Light Treads Treads Light Treads Wheel Wheel Hover Unit Antigrav System Utility Heat Sink Device Heat Sink Processor Target Analyzer Protection Light Armor Plating Weapon Beam Rifle Energy Gun Beam Rifle Ballistic Gun Heavy Assault Rifle Special Weapon Remote Datajack Build | -11 -10 -9 -8 -7 -7 -7 -7 ------- Run | Jun Mat Mat Mat Fac Gar Fac Gar Slots Evolved . | . . . . . . . . Power . | . . . . . . . . Propulsion . | . . . . . . . . Utility . | . . . . . . . . Weapon . | . . . . . . . . Parts Attached . | . . . . . . . . Power . | . . . . . . . . Engine . | . . . . . . . . Core . | . . . . . . . . Reactor . | . . . . . . . . Propulsion . | . . . . . . . . Treads . | . . . . . . . . Leg . | . . . . . . . . Wheel . | . . . . . . . . Hover . | . . . . . . . . Flight . | . . . . . . . . Utility . | . . . . . . . . Device . | . . . . . . . . Storage . | . . . . . . . . Processor . | . . . . . . . . Hackware . | . . . . . . . . Protection . | . . . . . . . . Artifact . | . . . . . . . . Weapon . | . . . . . . . . Energy Gun . | . . . . . . . . Energy Cannon . | . . . . . . . . Ballistic Gun . | . . . . . . . . Ballistic Cannon . | . . . . . . . . Launcher . | . . . . . . . . Special Weapon . | . . . . . . . . Impact Weapon . | . . . . . . . . Slashing Weapon . | . . . . . . . . Piercing Weapon . | . . . . . . . . Special Melee Weapon . | . . . . . . . . Unidentified Prototypes . | . . . . . . . . Parts Lost 17 | . . . 3 . 9 . 5 Power 1 | . . . . . 1 . . Propulsion 6 | . . . 1 . 3 . 2 Utility 3 | . . . 2 . 1 . . Weapon 7 | . . . . . 4 . 3 Highest Loss Streak 4 | . . . 1 . 4 . 2 To Critical Strikes . | . . . . . . . . Average Slot Usage (%) 98 | . 100 99 99 100 97 96 68 Engine 10 | . 16 12 12 12 8 . . Core 1 | . . . . . 3 11 10 Treads 22 | . . 24 24 25 16 . . Hover 1 | . . . . . 6 21 7 Device 24 | . 33 24 24 25 23 21 22 Processor 1 | . . . . . 3 11 11 Protection 10 | . . 11 11 12 8 . . Energy Gun 12 | . . 11 12 12 14 20 7 Ballistic Gun 10 | . . 11 12 12 8 . . Special Weapon 1 | . 16 . . . 3 11 10 Naked Turns 4 | . . 1 . . 3 . . Heaviest Build 23 | 6 6 18 18 18 23 17 17 Greatest Support 40 | 20 20 40 40 40 40 18 18 Greatest Overweight (x) 3 | . . . . . 1 . 3 Average Overweight (x) . | . . . . . . . 1 Largest Inventory Capacity 5 | . . 1 1 1 5 5 5 Average Capacity 1 | . . . 1 1 2 5 5 Most Carried 5 | . . . . . 5 5 5 Average Carried . | . . . . . 1 4 3 Final Capacity 5 | . . 1 1 1 5 5 5 Final Carried 5 | . . . . . 5 5 2 Class Distribution -------------------- 89% | Sentry 9% | Programmer Dominant Class ---------------- Tunneler | -10/Materials Sentry | -9/Materials Sentry | -8/Materials Sentry | -7/Factory Sentry | -7/Garrison Programmer | -7/Factory Programmer | -7/Garrison Resources | -11 -10 -9 -8 -7 -7 -7 -7 ----------- Run | Jun Mat Mat Mat Fac Gar Fac Gar Matter Collected 513 | . . 48 100 . 365 . . Remotely . | . . . . . . . . Salvage Created 2207 | . . 148 435 . 1473 151 . Parts 119 | . . 19 44 . 54 2 . Haulers Intercepted . | . . . . . . . . Recyclers Shooed . | . . . . . . . . Parts Field Recycled . | . . . . . . . . Retrieved Matter . | . . . . . . . . Parts Self-Destructed . | . . . . . . . . Prevented . | . . . . . . . . Kills | -11 -10 -9 -8 -7 -7 -7 -7 ------- Run | Jun Mat Mat Mat Fac Gar Fac Gar Combat Hostiles Destroyed 65 | . . 10 19 . 34 2 . Guns 63 | . . 10 19 . 32 2 . AOE 2 | . . . . . 2 . . Classes Destroyed 9 | . . 3 2 . 4 . . Tunneler 1 | . . 1 . . . . . Watcher 4 | . . . 4 . . . . Swarmer 15 | . . 7 8 . . . . Grunt 25 | . . . 6 . 17 2 . Brawler 4 | . . . . . 4 . . Sentry 15 | . . 3 5 . 7 . . Specialist 1 | . . . . . 1 . . Hunter 3 | . . . . . 3 . . Programmer 2 | . . . . . 2 . . Best Kill Streak 5 | . . 3 5 . 5 1 . Combat Bots Only 5 | . . 3 4 . 5 1 . Max Kills in Single Turn 2 | . . 2 2 . 2 1 . Gunslinging 1 | . . 1 1 . 1 . . Exploded 2 | . . . . . 2 . . Melee . | . . . . . . . . Uniques/NPCs Destroyed . | . . . . . . . . Combat | -11 -10 -9 -8 -7 -7 -7 -7 -------- Run | Jun Mat Mat Mat Fac Gar Fac Gar Damage Taken 4046 | . . 100 687 . 2652 282 325 Core 806 | . . 11 92 . 464 52 187 Absorbed by Shields . | . . . . . . . . Core Remaining (%) 95 | 100 100 97 83 . . . . Volleys Fired 192 | . . 20 76 . 88 6 2 Largest 2 | . . 2 2 . 2 2 1 Hottest 125 | . . 100 79 . 125 100 50 Shots Fired 379 | . . 38 152 . 175 12 2 Gun 377 | . . 36 152 . 175 12 2 Cannon . | . . . . . . . . Launcher . | . . . . . . . . Special 2 | . . 2 . . . . . Kinetic 172 | . . 18 76 . 78 . . Thermal 174 | . . 20 76 . 78 . . Explosive . | . . . . . . . . Electromagnetic 33 | . . . . . 19 12 2 Robot Hit Streak 38 | . . 7 20 . 38 14 . Robot Miss Streak 4 | . . 2 3 . 4 . . Penetration Max . | . . . . . . . . Secondary Targets 8 | . . 2 5 . 1 . . Max Gunslinging Chain 1 | . . 1 1 . 1 . . Shots Hit Robots 294 | . . 26 105 . 153 10 . Core Hits 229 | . . 14 44 . 164 7 . Critical Kills . | . . . . . . . . Critical Parts Destroyed 1 | . . . 1 . . . . Critical Strikes 9 | . . 2 4 . 2 1 . Burn 6 | . . 2 3 . 1 . . Destroy 1 | . . . 1 . . . . Corrupt 2 | . . . . . 1 1 . Melee Attacks . | . . . . . . . . Impact . | . . . . . . . . Slashing . | . . . . . . . . Piercing . | . . . . . . . . Sneak Attacks . | . . . . . . . . Combat Hostiles . | . . . . . . . . Follow-up Attacks . | . . . . . . . . Damage Inflicted 5840 | . . 407 1582 . 3785 66 . Guns 5567 | . . 407 1582 . 3512 66 . Cannons . | . . . . . . . . Explosions 273 | . . . . . 273 . . Melee . | . . . . . . . . Ramming . | . . . . . . . . Kinetic 2526 | . . 199 744 . 1583 . . Thermal 3137 | . . 208 838 . 2091 . . Explosive . | . . . . . . . . Electromagnetic 177 | . . . . . 111 66 . Impact . | . . . . . . . . Slashing . | . . . . . . . . Piercing . | . . . . . . . . Highest Corruption 5 | . . . . . 4 5 5 Average Corruption 4 | . . . . . 3 4 5 Corruption Purged . | . . . . . . . . Corruption Blocked . | . . . . . . . . Effects 13 | . . . . . 7 2 4 Message Errors 4 | . . . . . 1 2 1 Heat Flow Errors 1 | . . . . . 1 . . Energy Discharges 2 | . . . . . 1 . 1 Data Loss (minor) 4 | . . . . . 2 . 2 Data Loss (major) 1 | . . . . . 1 . . Misfires 1 | . . . . . 1 . . Overload Shots . | . . . . . . . . Overflow Damage . | . . . . . . . . Projectiles . | . . . . . . . . Explosions . | . . . . . . . . Melee . | . . . . . . . . Knockbacks . | . . . . . . . . Impact . | . . . . . . . . Kinetic . | . . . . . . . . Secondary . | . . . . . . . . Self-Inflicted Damage 48 | . . . . . 48 . . Shots 1 | . . . . . 1 . . Rammed . | . . . . . . . . Targets Rammed . | . . . . . . . . Kicked . | . . . . . . . . Crushed . | . . . . . . . . Highest Temperature 156 | . . 80 143 . 156 8 . Average Temperature 42 | . . 41 51 . 39 8 . Received Heat Transfer 1635 | . . 9 432 . 1029 129 36 Siege Activations . | . . . . . . . . Robots Corrupted . | . . . . . . . . Combat Hostiles . | . . . . . . . . Parts Fried 1 | . . . . . 1 . . Impact Corruptions . | . . . . . . . . Robots Melted . | . . . . . . . . Combat Hostiles . | . . . . . . . . Parts Melted 10 | . . 1 5 . 4 . . Heat Transferred 7282 | . . 666 2294 . 4322 . . Parts Sabotaged . | . . . . . . . . Parts Stolen . | . . . . . . . . Parts Stripped . | . . . . . . . . Power Chain Reactions 1 | . . . . . 1 . . Missiles Intercepted . | . . . . . . . . Alert | -11 -10 -9 -8 -7 -7 -7 -7 ------- Run | Jun Mat Mat Mat Fac Gar Fac Gar Peak Influence 1097 | . . 70 208 29 1097 654 403 Initial 489 | . . . . 26 17 489 403 Average 116 | . . 13 24 26 566 540 364 Maximum Alert Level 3 | . . . 1 . 3 2 2 Low Security (%) 83 | 100 100 100 99 100 17 . . Level 1 5 | . . . . . 16 . 87 Level 2 5 | . . . . . 21 100 12 Level 3 6 | . . . . . 44 . . Level 4 . | . . . . . . . . Level 5 . | . . . . . . . . High Security . | . . . . . . . . Max Security . | . . . . . . . . Squads Dispatched 6 | . . . 2 . . 4 . Investigation 3 | . . . 1 . . 2 . Extermination . | . . . . . . . . Reinforcement 2 | . . . 1 . . 1 . Assault . | . . . . . . . . Garrison 1 | . . . . . . 1 . Intercept . | . . . . . . . . Searches Triggered . | . . . . . . . . Construction Impeded . | . . . . . . . . Haulers Reinforced . | . . . . . . . . Active Scanning Responses . | . . . . . . . . Cargo Convoy Interrupts . | . . . . . . . . Stealth | -11 -10 -9 -8 -7 -7 -7 -7 --------- Run | Jun Mat Mat Mat Fac Gar Fac Gar Distress Signals 4 | . . . 4 . . . . Communications Jammed . | . . . . . . . . Distress Signals . | . . . . . . . . Times Spotted 106 | . . 6 26 . 52 13 9 Peak Tracking Total 6 | . . 2 5 . 5 3 6 Tactical Retreats 3 | . . . . . 1 2 . Traps | -11 -10 -9 -8 -7 -7 -7 -7 ------- Run | Jun Mat Mat Mat Fac Gar Fac Gar Traps Triggered 7 | . . . 1 . 3 . 3 Indirectly . | . . . . . . . . Trap Hack Attempts . | . . . . . . . . Triggered . | . . . . . . . . Disarmed . | . . . . . . . . Reprogrammed . | . . . . . . . . Reused 3 | . . . . . . . 3 Traps Extracted . | . . . . . . . . Installed 5 | . . . . . . . 5 Triggered 3 | . . . . . . . 3 Most Traps Carried 5 | . . . . . . . 5 Machines | -11 -10 -9 -8 -7 -7 -7 -7 ---------- Run | Jun Mat Mat Mat Fac Gar Fac Gar Machines Disabled . | . . . . . . . . Max in Single Turn . | . . . . . . . . Machines Repaired . | . . . . . . . . Machines Sabotaged . | . . . . . . . . Overloaded Fab Kills . | . . . . . . . . Hacking | -11 -10 -9 -8 -7 -7 -7 -7 --------- Run | Jun Mat Mat Mat Fac Gar Fac Gar Machines Accessed 9 | . . . 1 1 3 4 . Terminals 6 | . . . 1 . 3 2 . Fabricators 1 | . . . . . . 1 . Repair Stations . | . . . . . . . . Recycling Units . | . . . . . . . . Scanalyzers . | . . . . . . . . Garrison Access 2 | . . . . 1 . 1 . Total Hacks 18 | . . . 2 2 5 9 . Successful 8 | . . . 1 1 2 4 . Failed 10 | . . . 1 1 3 5 . Catastrophic 3 | . . . . . 2 1 . Database Lockouts . | . . . . . . . . Manual 9 | . . . 2 . 2 5 . Terminals 12 | . . . 2 . 5 5 . Fabricators 2 | . . . . . . 2 . Repair Stations . | . . . . . . . . Recycling Units . | . . . . . . . . Scanalyzers . | . . . . . . . . Garrison Access 4 | . . . . 2 . 2 . Terminal Hacks 2 | . . . . . 1 1 . Garrison Index 1 | . . . . . . 1 . Garrison Registry 1 | . . . . . 1 . . Fabricator Hacks . | . . . . . . . . Repair Station Hacks . | . . . . . . . . Recycling Unit Hacks . | . . . . . . . . Scanalyzer . | . . . . . . . . Garrison Access Hacks 2 | . . . . 1 . 1 . Unlock Access 2 | . . . . 1 . 1 . Unauthorized Hacks 4 | . . . 1 . 1 2 . Terminals 4 | . . . 1 . 1 2 . Botnet 4 | . . . 1 . 1 2 . Fabricators . | . . . . . . . . Repair Stations . | . . . . . . . . Recycling Units . | . . . . . . . . Scanalyzers . | . . . . . . . . Garrison Access . | . . . . . . . . Data Cores Recovered . | . . . . . . . . Used . | . . . . . . . . Hacking Detections 8 | . . . 1 1 2 4 . Full Trace Events 3 | . . . . . 1 2 . Feedback Events 1 | . . . . . . 1 . Corruption 1 | . . . . . . 1 . Feedback Blocked . | . . . . . . . . Robot Schematics Acquired . | . . . . . . . . Robots Built . | . . . . . . . . Authchips . | . . . . . . . . Time . | . . . . . . . . Total Robot Build Rating . | . . . . . . . . Part Schematics Acquired . | . . . . . . . . Parts Built . | . . . . . . . . Authchips . | . . . . . . . . Time . | . . . . . . . . Total Part Build Rating . | . . . . . . . . Parts Repaired . | . . . . . . . . Time . | . . . . . . . . Parts Recycled . | . . . . . . . . Recycled Matter . | . . . . . . . . Retrieved Matter . | . . . . . . . . Retrieved Components . | . . . . . . . . Parts Scanalyzed . | . . . . . . . . Part Schematics Acquired . | . . . . . . . . Parts Damaged . | . . . . . . . . Bothacking | -11 -10 -9 -8 -7 -7 -7 -7 ------------ Run | Jun Mat Mat Mat Fac Gar Fac Gar Used RIF Installer 1 | . . . . . 1 . . Robots Hacked 7 | . . 1 1 . 4 1 . Non-combat . | . . . . . . . . Combat 7 | . . 1 1 . 4 1 . Robot Hacks Applied 9 | . . 1 2 . 4 2 . find_shortcuts 7 | . . 1 1 . 4 1 . find_garrison 2 | . . . 1 . . 1 . Relay Couplers Released . | . . . . . . . . Fabnet Peak Effective % . | . . . . . . . . Robots Rewired 6 | . . . . . 6 . . Allies Hacked . | . . . . . . . . Hacks Repelled . | . . . . . . . . Allies | -11 -10 -9 -8 -7 -7 -7 -7 -------- Run | Jun Mat Mat Mat Fac Gar Fac Gar Total Allies 13 | . . . . . 9 3 1 Largest Group 6 | . . . . . 6 2 1 Highest-Rated Group 238 | . . . . . 238 48 32 Highest-Rated Ally 40 | . . . . . 40 32 32 Total Orders . | . . . . . . . . Ally Attacks 68 | . . . . . 43 18 7 Total Damage 1398 | . . . . . 937 352 109 Kills 12 | . . . . . 7 4 1 Allies Corrupted . | . . . . . . . . Allies Melted . | . . . . . . . . Intel | -11 -10 -9 -8 -7 -7 -7 -7 ------- Run | Jun Mat Mat Mat Fac Gar Fac Gar Robot Analysis Total 5 | 1 . 1 . . 2 1 . Derelict Logs Recovered . | . . . . . . . . Drone Launches . | . . . . . . . . Drone Recoveries . | . . . . . . . . Exploration | -11 -10 -9 -8 -7 -7 -7 -7 ------------- Run | Jun Mat Mat Mat Fac Gar Fac Gar Turns Passed 13289 | 19 62 4772 5818 104 1835 293 386 Spaces Moved 2763 | 33 78 174 436 66 1348 323 305 Core 138 | 22 . 1 . . 6 . 109 Treads 1239 | . . 137 436 66 600 . . Legs . | . . . . . . . . Wheels 125 | 11 78 36 . . . . . Hover 1261 | . . . . . 742 323 196 Flight . | . . . . . . . . Fastest Speed 50 | 50 80 50 160 160 50 56 50 Average Speed 112 | 60 80 142 160 160 106 56 114 Slowest Speed 240 | 80 80 160 160 160 240 60 200 Overloaded Moves . | . . . . . . . . Propulsion Burnouts . | . . . . . . . . Robots Hopped . | . . . . . . . . Cave-ins Triggered . | . . . . . . . . Exploration Rate (%) 26 | 3 20 20 35 4 85 9 39 Regions Visited 7 Branch Regions . Pre-discovered Areas . | . . . . . . . . Known Exits Taken 2 | . . . . 1 . 1 . Unknown Exits Taken 4 | 1 1 1 1 . . . . Scrap Searched . | . . . . . . . . Spaces Dug 1 | . . 1 . . . . . Terrain Destroyed 11 | . . 1 . . 10 . . Melee . | . . . . . . . . Projectile 1 | . . 1 . . . . . AOE 10 | . . . . . 10 . . Terrain Rammed . | . . . . . . . . Walls Destroyed . | . . . . . . . . Machines Disabled . | . . . . . . . . Actions | -11 -10 -9 -8 -7 -7 -7 -7 --------- Run | Jun Mat Mat Mat Fac Gar Fac Gar Total 12496 | 32 77 4656 5405 65 1538 383 340 Wait 9395 | . . 4463 4894 . 31 3 4 Move 2756 | 32 77 173 435 65 1347 322 305 Hop . | . . . . . . . . Pick Up 19 | . . . . . 6 5 8 Fast Attach . | . . . . . . . . Attach . | . . . . . . . . Detach . | . . . . . . . . Swap . | . . . . . . . . Drop 21 | . . . . . 5 5 11 Fire 192 | . . 20 76 . 88 6 2 Melee . | . . . . . . . . Ram . | . . . . . . . . Kick . | . . . . . . . . Crush . | . . . . . . . . Escape Stasis 26 | . . . . . 26 . . Rewire . | . . . . . . . . Trap 5 | . . . . . . . 5 Miscellaneous 82 | . . . . . 35 42 5 Route ------- -11/Junkyard -10/Materials -9/Materials -8/Materials -7/Factory -7/Garrison (discovered 3 exits: *Fac x3) -7/Factory -7/Garrison (discovered 1 exit: [*Fac]) History --------- Turn | Location | Event 5 | -11/Junkyard | Discovered new exit (range 12) 20 | -11/Junkyard | Entered Materials 70 | -10/Materials | Discovered new exit (range 9) 82 | -10/Materials | Entered another Materials area 3688 | -9/Materials | Discovered new exit (range 16) 4854 | -9/Materials | Entered another Materials area 9457 | -8/Materials | Discovered new exit (range 15) 10672 | -8/Materials | Entered Factory 10772 | -7/Factory | Identified exit to Garrison 10776 | -7/Factory | Entered Garrison 10812 | -7/Garrison | Triggered checkpoint 11148 | -7/Garrison | Triggered checkpoint 11256 | -7/Garrison | Triggered checkpoint 11317 | -7/Garrison | Discovered new exit (range 13) 11524 | -7/Garrison | Triggered checkpoint 11596 | -7/Garrison | Triggered checkpoint 11671 | -7/Garrison | Discovered new exit (range 10) 11712 | -7/Garrison | Triggered checkpoint 11768 | -7/Garrison | Triggered checkpoint 11783 | -7/Garrison | Core integrity fell below 50% 11916 | -7/Garrison | Triggered checkpoint 11954 | -7/Garrison | Triggered checkpoint 12045 | -7/Garrison | Lost 4 parts (1p1n2w) 12287 | -7/Garrison | Installed Relay Interface Framework 12305 | -7/Garrison | Discovered new exit (range 12) 12320 | -7/Garrison | Triggered checkpoint 12334 | -7/Garrison | Discovered new exit (range 25) 12334 | -7/Garrison | Discovered new exit (range 34) 12334 | -7/Garrison | Discovered new exit (range 79) 12488 | -7/Garrison | Spotted B-75 Beast 12488 | -7/Garrison | Spotted B-75 Beast 12611 | -7/Garrison | Entered Factory 12857 | -7/Factory | Garrison activated, responded to threat 12883 | -7/Factory | Identified exit to Garrison 12904 | -7/Factory | Entered Garrison 12904 | -7/Garrison | Accompanied by 1 ally 12914 | -7/Garrison | Triggered checkpoint 12932 | -7/Garrison | Triggered checkpoint 13062 | -7/Garrison | Discovered new exit (range 8) 13088 | -7/Garrison | Triggered checkpoint 13092 | -7/Garrison | Core integrity fell below 20% 13290 | -7/Garrison | Destroyed by C-17 Slicer with Blade Saw Last Messages --------------- 13098_ Reactivated Guardian 4c. 13099_ Acquired 25 Protomatter. 13101_ The unstable cave ceiling collapses. 13229_ Acquired Fusion Bomb Trap. 13234_ System corrupted: Component data lost. 13270_ Knocked back. 13271_ Remote Datajack destroyed. 13271_ Knocked back. 13272_ Dropped Fusion Bomb Trap. 13272_ Mic. Nuclear Core severed. 13272_ Installed Fusion Bomb Trap. 13275_ C-17 Slicer triggered Fusion Bomb Trap. 13275_ An explosion rips through the floor. 13275_ C-17 Slicer destroyed. 13277_ C-17 Slicer sneak attacks. 13279_ Dropped Fusion Bomb Trap. 13280_ Installed Fusion Bomb Trap. 13283_ Guardian 4c destroyed. 13287_ C-17 Slicer triggered Fusion Bomb Trap. 13287_ An explosion rips through the floor. Map ----- +----------------------------------------------------+ | ????????????????????????????????????????????? | | ????????????????????????????????????????????? | | ????????????????????????????????????????????? | | ????????????????????????????????????????????? | | ????????????????????????????????????????????? | | ????????????????????????????????????????????? | | ????????????????????????????????????????????? | | ????????####????????????????????????????????? | | ???###### #????????????????????????????????? | | ???# ! # ###???????????????????????????????? | | ####=%[### ##??????????????????????????????? | | * #??????????????????????????????? | | ### # #??????????????????????????????? | | ""### # # #??????????????????????????????? | | ###?### # #??????????????????????????????? | | ??????# #### #??????????????????????????????? | | ??????# #??# #??????????????????????????????? | | ??????# #??# #??????????????????????????????? | | ??????# #??# #??????????????????????????????? | | ??????# #??# #??????????????????????????????? | | ??????# ??# #??????????????????????????????? | | ??????###??# #??????????????????????????????? | | ???????????# #??????????????????????????????? | | ???????????# #??????????##############??????? | | ???????????# #???????#??# ? #??????? | | ?????????### ##### < #??#p"""" """ #??????? | | ?????##### #?##c" " " #??????? | | ?????? #?# " " " #??????? | | ???????## ### ####?# """ ! #??????? | | ???????# = ## ^ !^! #??????? | | ???????# % s ! ! #??????? | | ###????# = """" #??????? | | ###### % # # "??" " " #??????? | | * #### "??" " " #??????? | | ######???# """" #??????? | | ##### ???????????# #??????? | | #???## ## #???????????##############??????? | | "????#??# ???????????????????????????????? | | "???????###???????????????????????????????? | | "?????????????????????????????????????????? | | "?????????????????????????????????????????? | | #?????????????????????????????????????????? | | #?????????????????????????????????????????? | | ????????????????????????????????????????? | | ???????????????????????????????????????? | | ####??????????????????????????????????????? | | ##?????????????????????????????????????????? | | #??????????????????????????????????????????? | | #??????????????????????????????????????????? | | #??????????????????????????????????????????? | +----------------------------------------------------+ Best States ------------- Heat Dissipation 54 Energy Generation 25 Energy Capacity 240 Matter Stores 100 Matter Capacity 100 Sight Range 16 Terrain Scan Range 16 Terrain Scan Density 10 Armor Coverage 150 Resistance: KI 20 Resistance: TH 20 Resistance: EX 70 Resistance: EM 95 Resistance: I 45 Resistance: S 20 Resistance: P 20 Evasion (%) 53 Target Analysis 6 Recoil Reduction 2 Offensive Hacking 10 Authchip Count 5 Item Schematics ----------------- None Robot Schematics ------------------ None Fabricated ------------ Nothing Alien Tech Used ----------------- None Achievements -------------- None Challenges ------------ None Polymind | -11 -10 -9 -8 -7 -7 -7 -7 ---------- Run | Jun Mat Mat Mat Fac Gar Fac Gar Hosts 8 | 1 . 1 1 . 4 1 . Combat Hostiles 7 | . . 1 1 . 4 1 . Allies . | . . . . . . . . Unique Host Classes 3 | 1 . 1 . . 1 . . Average Host Suspicion 56 | 1 27 40 54 12 92 89 87 Unsuspicious Activity 10126 | 2 . 4474 4905 . 325 320 100 Returns to Shadow 9 | . . 4 5 . . . . Fuzzy Dispatches . | . . . . . . . . Protomatter Created 731 | . . 54 153 . 405 80 39 Used 297 | 5 . 23 23 . 206 40 . Decayed 78 | . . . 28 . 36 . 14 Highest Spend 53 | 5 . 23 23 . 53 40 . Top 5 Hosts by Kills: Y-45 Defender (-9/Materials: 22) Y-54 Guardian (-7/Garrison: 14) Y-54 Guardian (-7/Garrison: 11) Y-45 Defender (-8/Materials: 8) Y-54 Guardian (-7/Garrison: 5) Game ------ Seed MasterGuidanceInterpreter Manual? 0 Play Time 00:53:44 Cumulative 64.6 hours Start 2023.12.09 @ 05:23:37 End 2023.12.09 @ 13:54:53 Sessions 1 Manual Loads 0 Difficulty Adventurer Special Mode Winter2022/Polymind Game No. 28 Rogue 0 Adventurer 28 Explorer 0 Win Type - Total 0 Types 0/0/0/0/0/0/0/0/0 Lore% 24 Gallery% 43 Achievement% 40 Wizard Run 0 Options --------- ASCII 0 Keyboard 0 Movement Mouse Keybinds 0 Fullscreen 0 Font 16/SmallcapsGlow Map View 76x50 Tactical HUD 1 Map Filters NONE Filters NONE Steam 1 RUN: 87d602f9-4d32-4abc-ac87-efcd5c637bd2